fUSD/lending_fUSD_20250112
["ID","MTS","AMOUNT","RATE_DAILY","PERIOD"]
[348587100,1736644238123,-500.0,9.988e-05,2]
[348587101,1736644238132,-500.0,9.988e-05,2]
[348587102,1736644238142,-500.0,9.988e-05,2]
[348587103,1736644238150,-500.0,9.988e-05,2]
[348587104,1736644238160,-500.0,9.988e-05,2]
[348587106,1736644238169,-500.0,9.988e-05,2]
[348587107,1736644238178,-500.0,9.988e-05,2]
[348587109,1736644238187,-485.98198672,9.988e-05,2]
[348587114,1736644239860,-603.93,9.987e-05,2]
[348587115,1736644239870,-14.01801328,9.988e-05,2]
[348587116,1736644239879,-482.86898672,9.988e-05,2]
[348587117,1736644239921,-17.13101328,9.988e-05,2]
[348587118,1736644239930,-500.0,9.988e-05,2]
[348587119,1736644239940,-344.51044006,9.988e-05,2]
[348587120,1736644239951,-155.48955994,9.988e-05,2]
[348587121,1736644239960,-500.0,9.988e-05,2]
[348587122,1736644239969,-468.8,9.988e-05,2]
[348587123,1736644239978,-500.0,9.988e-05,2]
[348587124,1736644240178,-500.0,9.988e-05,2]
[348587125,1736644240188,-500.0,9.988e-05,2]
[348587126,1736644240198,-500.0,9.988e-05,2]
[348587127,1736644240207,-500.0,9.988e-05,2]
[348587128,1736644240216,-500.0,9.988e-05,2]
[348587129,1736644240225,-500.0,9.988e-05,2]
[348587130,1736644240234,-500.0,9.988e-05,2]
[348587131,1736644240243,-500.0,9.988e-05,2]
[348587132,1736644240252,-500.0,9.988e-05,2]
[348587133,1736644240261,-500.0,9.988e-05,2]
[348587134,1736644240270,-500.0,9.988e-05,2]
[348587135,1736644240280,-500.0,9.988e-05,2]
[348587136,1736644240289,-3140.46,9.988e-05,2]
[348587137,1736644240298,-1288.54,9.988e-05,2]
[348587138,1736644240307,-1828.36,9.988e-05,2]
[348587139,1736644240317,-5991.07,9.988e-05,2]
[348587140,1736644240326,-500.0,9.988e-05,2]
[348587141,1736644240335,-662.49,9.988e-05,2]
[348587142,1736644240344,-500.0,9.988e-05,2]
[348587143,1736644240354,-1104.05,9.988e-05,2]
[348587144,1736644240363,-2235.99,9.988e-05,2]
[348587145,1736644240372,-788.3,9.988e-05,2]
[348587146,1736644240382,-2286.34,9.988e-05,2]
[348587147,1736644240392,-2475.58,9.988e-05,2]
[348587148,1736644240402,-1843.7,9.988e-05,2]
[348587149,1736644240412,-500.0,9.988e-05,2]
[348587150,1736644240422,-500.0,9.988e-05,2]
[348587151,1736644240431,-4294.04,9.988e-05,2]
[348587152,1736644240440,-873.2,9.988e-05,2]
[348587153,1736644240451,-1090.5,9.988e-05,2]
[348587154,1736644240461,-1262.55,9.988e-05,2]
[348587155,1736644240470,-3053.73,9.988e-05,2]
[348587156,1736644240480,-1406.51,9.988e-05,2]
[348587157,1736644240489,-692.35,9.988e-05,2]
[348587158,1736644240498,-500.0,9.988e-05,2]
[348587160,1736644240508,-1565.45,9.988e-05,2]
[348587162,1736644240516,-500.0,9.988e-05,2]
[348587164,1736644240526,-442.95984729,9.988e-05,2]
[348587166,1736644240539,-594.40015271,9.988e-05,2]
[348587168,1736644240548,-500.0,9.988e-05,2]
[348587170,1736644240558,-1343.0,9.988e-05,2]
[348587171,1736644240568,-500.0,9.988e-05,2]
[348587172,1736644240577,-2221.61,9.988e-05,2]
[348587173,1736644240586,-1212.54,9.988e-05,2]
[348587174,1736644240596,-903.66,9.988e-05,2]
[348587175,1736644240605,-500.0,9.989e-05,2]
[348587176,1736644240615,-500.0,9.989e-05,2]
[348587177,1736644240624,-500.0,9.989e-05,2]
[348587178,1736644240633,-500.0,9.989e-05,2]
[348587179,1736644240643,-500.0,9.989e-05,2]
[348587180,1736644240652,-500.0,9.989e-05,2]
[348587181,1736644240662,-500.0,9.989e-05,2]
[348587182,1736644240671,-500.0,9.989e-05,2]
[348587183,1736644240680,-500.0,9.989e-05,2]
[348587184,1736644240689,-500.0,9.989e-05,2]
[348587185,1736644240699,-500.0,9.989e-05,2]
[348587186,1736644240708,-500.0,9.989e-05,2]
[348587187,1736644240718,-500.0,9.989e-05,2]
[348587188,1736644240727,-500.0,9.989e-05,2]
[348587189,1736644240736,-500.0,9.989e-05,2]
[348587190,1736644240746,-500.0,9.989e-05,2]
[348587191,1736644240755,-719.09,9.989e-05,2]
[348587192,1736644240764,-500.0,9.989e-05,2]
[348587193,1736644240773,-500.0,9.989e-05,2]
[348587194,1736644240783,-500.0,9.989e-05,2]
[348587195,1736644240792,-500.0,9.989e-05,2]
[348587196,1736644240802,-500.0,9.989e-05,2]
[348587197,1736644240811,-617.45,9.989e-05,2]
[348587198,1736644240820,-500.0,9.989e-05,2]
[348587199,1736644240829,-500.0,9.989e-05,2]
[348587200,1736644240838,-500.0,9.989e-05,2]
[348587201,1736644240847,-500.0,9.989e-05,2]
[348587202,1736644240856,-500.0,9.989e-05,2]
[348587203,1736644240865,-500.0,9.989e-05,2]
[348587204,1736644240874,-500.0,9.989e-05,2]
[348587205,1736644240885,-721.15,9.989e-05,2]
[348587206,1736644240895,-500.0,9.989e-05,2]
[348587207,1736644240905,-500.0,9.989e-05,2]
[348587208,1736644240914,-500.0,9.989e-05,2]
[348587209,1736644240924,-500.0,9.989e-05,2]
[348587210,1736644240933,-500.0,9.989e-05,2]
[348587211,1736644240942,-500.0,9.989e-05,2]
[348587212,1736644240952,-1297.31,9.989e-05,2]
[348587213,1736644240963,-500.0,9.989e-05,2]
[348587214,1736644240971,-500.0,9.989e-05,2]
[348587215,1736644240981,-500.0,9.989e-05,2]
[348587216,1736644240990,-500.0,9.989e-05,2]
[348587217,1736644240999,-500.0,9.989e-05,2]
[348587218,1736644241008,-500.0,9.989e-05,2]
[348587219,1736644241018,-500.0,9.989e-05,2]
[348587220,1736644241026,-500.0,9.989e-05,2]
[348587221,1736644241035,-552.39,9.989e-05,2]
[348587222,1736644241045,-500.0,9.989e-05,2]
[348587223,1736644241054,-500.0,9.989e-05,2]
[348587224,1736644241063,-500.0,9.989e-05,2]
[348587225,1736644241073,-500.0,9.989e-05,2]
[348587226,1736644241082,-500.0,9.989e-05,2]
[348587227,1736644241091,-500.0,9.989e-05,2]
[348587228,1736644241100,-500.0,9.989e-05,2]
[348587229,1736644241110,-500.0,9.989e-05,2]
[348587230,1736644241119,-918.4,9.989e-05,2]
[348587231,1736644241128,-500.0,9.989e-05,2]
[348587232,1736644241137,-500.0,9.989e-05,2]
[348587233,1736644241146,-511.6,9.989e-05,2]
[348587234,1736644241155,-500.0,9.989e-05,2]
[348587235,1736644241164,-500.0,9.989e-05,2]
[348587236,1736644241173,-500.0,9.989e-05,2]
[348587237,1736644241182,-631.85024488,9.989e-05,2]
[348587238,1736644241191,-500.0,9.989e-05,2]
[348587239,1736644241201,-500.0,9.989e-05,2]
[348587240,1736644241210,-500.0,9.989e-05,2]
[348587241,1736644241219,-500.0,9.989e-05,2]
[348587242,1736644241229,-759.19,9.989e-05,2]
[348587243,1736644241239,-500.0,9.989e-05,2]
[348587244,1736644241248,-500.0,9.989e-05,2]
[348587245,1736644241258,-500.0,9.989e-05,2]
[348587246,1736644241268,-500.0,9.989e-05,2]
[348587247,1736644241277,-500.0,9.989e-05,2]
[348587248,1736644241287,-540.51,9.989e-05,2]
[348587249,1736644241296,-524.41,9.989e-05,2]
[348587250,1736644241305,-500.0,9.989e-05,2]
[348587251,1736644241314,-500.0,9.989e-05,2]
[348587252,1736644241324,-500.0,9.989e-05,2]
[348587253,1736644241333,-500.0,9.989e-05,2]
[348587254,1736644241342,-500.0,9.989e-05,2]
[348587255,1736644241351,-500.0,9.989e-05,2]
[348587256,1736644241361,-500.0,9.989e-05,2]
[348587257,1736644241370,-500.0,9.989e-05,2]
[348587258,1736644241379,-500.0,9.989e-05,2]
[348587259,1736644241388,-500.0,9.989e-05,2]
[348587260,1736644241398,-500.0,9.989e-05,2]
[348587261,1736644241407,-500.0,9.989e-05,2]
[348587262,1736644241417,-500.0,9.989e-05,2]
[348587263,1736644241426,-500.0,9.989e-05,2]
[348587264,1736644241435,-500.0,9.989e-05,2]
[348587265,1736644241445,-1658.62,9.989e-05,2]
[348587266,1736644241455,-500.0,9.989e-05,2]
[348587267,1736644241464,-500.0,9.989e-05,2]
[348587268,1736644241473,-500.0,9.989e-05,2]
[348587269,1736644241482,-500.0,9.989e-05,2]
[348587270,1736644241491,-500.0,9.989e-05,2]
[348587271,1736644241500,-500.0,9.989e-05,2]
[348587272,1736644241509,-500.0,9.989e-05,2]
[348587273,1736644241518,-500.0,9.989e-05,2]
[348587274,1736644241527,-500.0,9.989e-05,2]
[348587275,1736644241536,-500.0,9.989e-05,2]
[348587276,1736644241545,-500.0,9.989e-05,2]
[348587277,1736644241555,-500.0,9.989e-05,2]
[348587278,1736644241565,-500.0,9.989e-05,2]
[348587279,1736644241574,-687.62,9.989e-05,2]
[348587280,1736644241584,-500.0,9.989e-05,2]
[348587281,1736644241594,-500.0,9.989e-05,2]
[348587282,1736644241603,-500.0,9.989e-05,2]
[348587283,1736644241613,-500.0,9.989e-05,2]
[348587284,1736644241622,-500.0,9.989e-05,2]
[348587285,1736644241632,-500.0,9.989e-05,2]
[348587286,1736644241641,-500.0,9.989e-05,2]
[348587287,1736644241651,-500.0,9.989e-05,2]
[348587288,1736644241660,-500.0,9.989e-05,2]
[348587289,1736644241670,-257.43604024,9.989e-05,2]
[348587290,1736644241679,-500.0,9.989e-05,2]
[348587291,1736644241688,-500.0,9.989e-05,2]
[348587292,1736644241698,-1088.16,9.989e-05,2]
[348587293,1736644241708,-500.0,9.989e-05,2]
[348587294,1736644241718,-500.0,9.989e-05,2]
[348587295,1736644241727,-500.0,9.989e-05,2]
[348587296,1736644241737,-500.0,9.989e-05,2]
[348587297,1736644241746,-500.0,9.989e-05,2]
[348587298,1736644241756,-694.01,9.989e-05,2]
[348587299,1736644241765,-500.0,9.989e-05,2]
[348587300,1736644241774,-500.0,9.989e-05,2]
[348587301,1736644241784,-419.66989025,9.989e-05,2]
[348587302,1736644241793,-500.0,9.989e-05,2]
[348587303,1736644241803,-500.0,9.989e-05,2]
[348587304,1736644241812,-222.58377241,9.989e-05,2]
[348587305,1736644241822,-500.0,9.989e-05,2]
[348587306,1736644241832,-500.0,9.989e-05,2]
[348587307,1736644241841,-500.0,9.989e-05,2]
[348587308,1736644241851,-500.0,9.989e-05,2]
[348587309,1736644241860,-500.0,9.989e-05,2]
[348587310,1736644241871,-500.0,9.989e-05,2]
[348587311,1736644241882,-836.48,9.989e-05,2]
[348587312,1736644241893,-708.73,9.989e-05,2]
[348587313,1736644241902,-500.0,9.989e-05,2]
[348587314,1736644241912,-500.0,9.989e-05,2]
[348587315,1736644241922,-945.37,9.989e-05,2]
[348587316,1736644241932,-500.0,9.989e-05,2]
[348587317,1736644241942,-500.0,9.989e-05,2]
[348587318,1736644241953,-198.06413225,9.989e-05,2]
[348587319,1736644241963,-500.0,9.989e-05,2]
[348587320,1736644241972,-500.0,9.989e-05,2]
[348587321,1736644241982,-1650.04,9.989e-05,2]
[348587322,1736644241991,-500.0,9.989e-05,2]
[348587323,1736644242001,-500.0,9.989e-05,2]
[348587324,1736644242010,-500.0,9.989e-05,2]
[348587325,1736644242019,-500.0,9.989e-05,2]
[348587326,1736644242028,-500.0,9.989e-05,2]
[348587327,1736644242037,-500.0,9.989e-05,2]
[348587328,1736644242046,-500.0,9.989e-05,2]
[348587329,1736644242056,-590.44087478,9.989e-05,2]
[348587330,1736644242065,-3136.4,9.989e-05,2]
[348587331,1736644242074,-500.0,9.989e-05,2]
[348587332,1736644242083,-861.52,9.989e-05,2]
[348587333,1736644242092,-500.0,9.989e-05,2]
[348587334,1736644242101,-500.0,9.989e-05,2]
[348587335,1736644242110,-500.0,9.989e-05,2]
[348587336,1736644242120,-500.0,9.989e-05,2]
[348587337,1736644242129,-500.0,9.989e-05,2]
[348587338,1736644242138,-500.0,9.989e-05,2]
[348587339,1736644242147,-1642.63,9.989e-05,2]
[348587340,1736644242156,-500.0,9.989e-05,2]
[348587341,1736644242166,-500.0,9.989e-05,2]
[348587342,1736644242175,-500.0,9.989e-05,2]
[348587343,1736644242184,-500.0,9.989e-05,2]
[348587344,1736644242194,-500.0,9.989e-05,2]
[348587345,1736644242203,-500.0,9.989e-05,2]
[348587346,1736644242212,-500.0,9.989e-05,2]
[348587347,1736644242221,-500.0,9.989e-05,2]
[348587348,1736644242230,-661.21,9.989e-05,2]
[348587349,1736644242239,-500.0,9.989e-05,2]
[348587350,1736644242248,-500.0,9.989e-05,2]
[348587351,1736644242257,-500.0,9.989e-05,2]
[348587352,1736644242266,-500.0,9.989e-05,2]
[348587353,1736644242275,-500.0,9.989e-05,2]
[348587354,1736644242284,-500.0,9.989e-05,2]
[348587355,1736644242293,-500.0,9.989e-05,2]
[348587356,1736644242302,-500.0,9.989e-05,2]
[348587357,1736644242312,-500.0,9.989e-05,2]
[348587358,1736644242322,-6363.76377142,9.989e-05,2]
[348587359,1736644242338,-2676.12531158,9.989e-05,2]
[348587360,1736644242347,-251.09839488,9.989e-05,2]
[348587361,1736644242356,-535.85335585,9.989e-05,2]
[348587362,1736644242365,-500.0,9.989e-05,2]
[348587363,1736644242375,-158.502141,9.989e-05,2]
[348587364,1736644242384,-500.0,9.989e-05,2]
[348587365,1736644242393,-500.0,9.989e-05,2]
[348587366,1736644242402,-500.0,9.989e-05,2]
[348587367,1736644242411,-500.0,9.989e-05,2]
[348587368,1736644242421,-552.89,9.989e-05,2]
[348587369,1736644242431,-500.0,9.989e-05,2]
[348587370,1736644242440,-500.0,9.989e-05,2]
[348587371,1736644242450,-1171.02,9.989e-05,2]
[348587372,1736644242459,-524.52,9.989e-05,2]
[348587373,1736644242468,-500.0,9.989e-05,2]
[348587374,1736644242480,-500.0,9.989e-05,2]
[348587375,1736644242489,-500.0,9.989e-05,2]
[348587376,1736644242499,-500.0,9.989e-05,2]
[348587377,1736644242509,-500.0,9.989e-05,2]
[348587378,1736644242518,-500.0,9.989e-05,2]
[348587379,1736644242527,-500.0,9.989e-05,2]
[348587380,1736644242536,-520.98252388,9.989e-05,2]
[348587381,1736644242546,-9088.318419,9.989e-05,2]
[348587382,1736644242555,-500.0,9.989e-05,2]
[348587383,1736644242565,-500.0,9.989e-05,2]
[348587385,1736644242575,-500.0,9.989e-05,2]
[348587386,1736644242584,-500.0,9.989e-05,2]
[348587387,1736644242593,-500.0,9.989e-05,2]
[348587388,1736644242602,-500.0,9.989e-05,2]
[348587390,1736644242611,-668.91,9.989e-05,2]
[348587392,1736644242620,-500.0,9.989e-05,2]
[348587394,1736644242629,-500.0,9.989e-05,2]
[348587396,1736644242639,-500.0,9.989e-05,2]
[348587400,1736644242648,-500.0,9.989e-05,2]
[348587403,1736644242656,-500.0,9.989e-05,2]
[348587406,1736644242665,-500.0,9.989e-05,2]
[348587409,1736644242674,-500.0,9.989e-05,2]
[348587410,1736644242683,-500.0,9.989e-05,2]
[348587412,1736644242692,-500.0,9.989e-05,2]
[348587413,1736644242703,-599.27035103,9.989e-05,2]
[348587414,1736644242712,-500.0,9.989e-05,2]
[348587416,1736644242722,-1158.59,9.989e-05,2]
[348587418,1736644242732,-577.53,9.989e-05,2]
[348587419,1736644242741,-668.44,9.989e-05,2]
[348587420,1736644242751,-500.0,9.989e-05,2]
[348587421,1736644242760,-500.0,9.989e-05,2]
[348587422,1736644242770,-500.0,9.989e-05,2]
[348587423,1736644242779,-500.0,9.989e-05,2]
[348587424,1736644242788,-500.0,9.989e-05,2]
[348587425,1736644242797,-500.0,9.989e-05,2]
[348587426,1736644242806,-500.0,9.989e-05,2]
[348587427,1736644242816,-500.0,9.989e-05,2]
[348587428,1736644242825,-500.0,9.989e-05,2]
[348587429,1736644242834,-500.0,9.989e-05,2]
[348587430,1736644242843,-500.0,9.989e-05,2]
[348587431,1736644242853,-500.0,9.989e-05,2]
[348587432,1736644242863,-502.74,9.989e-05,2]
[348587433,1736644242872,-624.4926893,9.989e-05,2]
[348587434,1736644242883,-500.0,9.989e-05,2]
[348587435,1736644242898,-500.0,9.989e-05,2]
[348587436,1736644242908,-500.0,9.989e-05,2]
[348587437,1736644242918,-500.0,9.989e-05,2]
[348587438,1736644242928,-1584.06,9.989e-05,2]
[348587439,1736644242938,-500.0,9.989e-05,2]
[348587440,1736644242948,-500.0,9.989e-05,2]
[348587441,1736644242958,-548.51,9.989e-05,2]
[348587442,1736644242969,-500.0,9.989e-05,2]
[348587443,1736644242979,-742.79,9.989e-05,2]
[348587444,1736644242988,-500.0,9.989e-05,2]
[348587445,1736644242998,-500.0,9.989e-05,2]
[348587446,1736644243007,-717.64,9.989e-05,2]
[348587447,1736644243017,-500.0,9.989e-05,2]
[348587448,1736644243026,-500.0,9.989e-05,2]
[348587449,1736644243036,-500.0,9.989e-05,2]
[348587450,1736644243045,-512.61193536,9.989e-05,2]
[348587451,1736644243055,-517.41701585,9.989e-05,2]
[348587452,1736644243065,-500.0,9.989e-05,2]
[348587453,1736644243074,-500.0,9.989e-05,2]
[348587454,1736644243084,-500.0,9.989e-05,2]
[348587455,1736644243094,-3957.1,9.989e-05,2]
[348587456,1736644243103,-500.0,9.989e-05,2]
[348587457,1736644243112,-500.0,9.989e-05,2]
[348587458,1736644243122,-500.0,9.989e-05,2]
[348587459,1736644243130,-377.08784187,9.989e-05,2]
[348587460,1736644243143,-122.91215813,9.989e-05,2]
[348587461,1736644243151,-500.0,9.989e-05,2]
[348587462,1736644243160,-684.81,9.989e-05,2]
[348587463,1736644243169,-395.73691582,9.989e-05,2]
[348587464,1736644243178,-535.10399128,9.989e-05,2]
[348587465,1736644243187,-500.0,9.989e-05,2]
[348587466,1736644243197,-500.0,9.989e-05,2]
[348587467,1736644243206,-316.85072392,9.989e-05,2]
[348587468,1736644243215,-500.0,9.989e-05,2]
[348587469,1736644243224,-500.0,9.989e-05,2]
[348587470,1736644243234,-500.0,9.989e-05,2]
[348587471,1736644243244,-490.66319289,9.989e-05,2]
[348587472,1736644243253,-500.0,9.989e-05,2]
[348587473,1736644243262,-500.0,9.989e-05,2]
[348587474,1736644243432,-2090.12,9.989e-05,2]
[348587475,1736644243442,-500.0,9.989e-05,2]
[348587476,1736644243452,-500.0,9.989e-05,2]
[348587477,1736644243462,-500.0,9.989e-05,2]
[348587478,1736644243471,-500.0,9.989e-05,2]
[348587479,1736644243480,-500.0,9.989e-05,2]
[348587480,1736644243489,-3673.09,9.989e-05,2]
[348587481,1736644243499,-500.0,9.989e-05,2]
[348587482,1736644243508,-500.0,9.989e-05,2]
[348587483,1736644243517,-500.0,9.989e-05,2]
[348587484,1736644243526,-500.0,9.989e-05,2]
[348587485,1736644243535,-500.0,9.989e-05,2]
[348587486,1736644243545,-500.0,9.989e-05,2]
[348587487,1736644243554,-500.0,9.989e-05,2]
[348587488,1736644243564,-1020.07,9.989e-05,2]
[348587489,1736644243574,-500.0,9.989e-05,2]
[348587490,1736644243583,-500.0,9.989e-05,2]
[348587491,1736644243592,-500.0,9.989e-05,2]
[348587492,1736644243601,-2224.61,9.989e-05,2]
[348587493,1736644243610,-500.0,9.989e-05,2]
[348587494,1736644243620,-500.0,9.989e-05,2]
[348587495,1736644243629,-500.0,9.989e-05,2]
[348587496,1736644243638,-500.0,9.989e-05,2]
[348587497,1736644243647,-500.0,9.989e-05,2]
[348587498,1736644243656,-500.0,9.989e-05,2]
[348587499,1736644243665,-500.0,9.989e-05,2]
[348587500,1736644243675,-500.0,9.989e-05,2]
[348587501,1736644243684,-500.0,9.989e-05,2]
[348587502,1736644243694,-500.0,9.989e-05,2]
[348587503,1736644243703,-516.13,9.989e-05,2]
[348587504,1736644243712,-500.0,9.989e-05,2]
[348587505,1736644243721,-500.0,9.989e-05,2]
[348587506,1736644243730,-500.0,9.989e-05,2]
[348587507,1736644243740,-500.0,9.989e-05,2]
[348587508,1736644243751,-665.88,9.989e-05,2]
[348587509,1736644243761,-468.85502308,9.99e-05,2]
[348587510,1736644243770,-500.0,9.99e-05,2]
[348587511,1736644243779,-500.0,9.99e-05,2]
[348587512,1736644243788,-500.0,9.99e-05,2]
[348587513,1736644243798,-545.43,9.99e-05,2]
[348587514,1736644243808,-500.0,9.99e-05,2]
[348587515,1736644243818,-526.04,9.99e-05,2]
[348587516,1736644243827,-500.0,9.99e-05,2]
[348587517,1736644243836,-500.0,9.99e-05,2]
[348587519,1736644243845,-632.23,9.99e-05,2]
[348587521,1736644243855,-500.0,9.99e-05,2]
[348587523,1736644243864,-500.0,9.99e-05,2]
[348587525,1736644243873,-500.0,9.99e-05,2]
[348587526,1736644243885,-682.62,9.99e-05,2]
[348587527,1736644243895,-500.0,9.99e-05,2]
[348587528,1736644243905,-835.41,9.99e-05,2]
[348587529,1736644243914,-500.0,9.99e-05,2]
[348587530,1736644243924,-706.81,9.99e-05,2]
[348587531,1736644243933,-500.0,9.99e-05,2]
[348587532,1736644243943,-500.0,9.99e-05,2]
[348587533,1736644243952,-774.5,9.99e-05,2]
[348587534,1736644243962,-500.0,9.99e-05,2]
[348587535,1736644243971,-500.0,9.99e-05,2]
[348587536,1736644243981,-500.0,9.99e-05,2]
[348587537,1736644243991,-500.0,9.99e-05,2]
[348587538,1736644244001,-500.0,9.99e-05,2]
[348587539,1736644244010,-524.75,9.99e-05,2]
[348587540,1736644244020,-500.0,9.99e-05,2]
[348587541,1736644244030,-500.0,9.99e-05,2]
[348587542,1736644244040,-500.0,9.99e-05,2]
[348587543,1736644244049,-947.91,9.99e-05,2]
[348587544,1736644244059,-500.0,9.99e-05,2]
[348587545,1736644244068,-500.0,9.99e-05,2]
[348587546,1736644244078,-1157.94,9.99e-05,2]
[348587547,1736644244089,-804.46,9.99e-05,2]
[348587548,1736644244099,-1176.26,9.99e-05,2]
[348587549,1736644244111,-1356.92,9.99e-05,2]
[348587550,1736644244121,-1628.69,9.99e-05,2]
[348587551,1736644244131,-2312.47,9.99e-05,2]
[348587552,1736644244141,-5861.46,9.99e-05,2]
[348587553,1736644244150,-944.49,9.99e-05,2]
[348587554,1736644244161,-1315.83,9.991e-05,2]
[348587555,1736644244170,-547.15,9.991e-05,2]
[348587556,1736644244180,-3659.19,9.991e-05,2]
[348587557,1736644244191,-613.4,9.991e-05,2]
[348587558,1736644244201,-1452.01,9.991e-05,2]
[348587559,1736644244211,-2037.41,9.991e-05,2]
[348587560,1736644244221,-500.0,9.991e-05,2]
[348587561,1736644244232,-2293.7,9.991e-05,2]
[348587562,1736644244242,-635.81,9.991e-05,2]
[348587563,1736644244251,-591.27,9.991e-05,2]
[348587564,1736644244260,-500.0,9.991e-05,2]
[348587565,1736644244270,-1128.22,9.991e-05,2]
[348587566,1736644244280,-845.18,9.991e-05,2]
[348587567,1736644244289,-902.73,9.991e-05,2]
[348587568,1736644244299,-1427.31,9.991e-05,2]
[348587569,1736644244308,-1417.12,9.991e-05,2]
[348587570,1736644244317,-500.0,9.991e-05,2]
[348587571,1736644244327,-634.68,9.991e-05,2]
[348587572,1736644244336,-1000.0,9.991e-05,2]
[348587573,1736644244345,-1964.89,9.991e-05,2]
[348587574,1736644244355,-565.91,9.991e-05,2]
[348587575,1736644244364,-500.0,9.991e-05,2]
[348587576,1736644244375,-678.2,9.991e-05,2]
[348587577,1736644244385,-1311.67,9.992e-05,2]
[348587578,1736644244395,-598.9854919,9.992e-05,2]
[348587579,1736644244405,-511.4253442,9.992e-05,2]
[348587580,1736644244415,-445.9617873,9.993e-05,2]
[348587581,1736644244425,-85.72537148,9.993e-05,2]
[348587582,1736644244774,-294.77285892,9.993e-05,2]
[348587583,1736644244784,-315.0346734,9.993e-05,2]
[348587584,1736644244795,-204.79246768,9.999e-05,2]
[348587585,1736644244822,-2065.318995,9.999e-05,2]
[348587586,1736644244831,-500.0,9.999e-05,2]
[348587587,1736644244840,-746.0,0.0001,2]
[348587588,1736644244850,-213426.20961687,0.0001,2]
[348587589,1736644244861,-333.58518724,0.0001,2]
[348587590,1736644244971,-500.0,9.989e-05,2]
[348587591,1736644244980,-1062.85910671,0.0001,2]
[348587592,1736644245005,-8707.26241549,0.0001,2]
[348587596,1736644245804,-487.98,9.991e-05,2]
[348587597,1736644245815,-505.79,9.991e-05,2]
[348587598,1736644245849,-744.5,9.991e-05,2]
[348587599,1736644245860,-35.7,9.991e-05,2]
[348587600,1736644245869,-7474.29559041,0.0001,2]
[348587601,1736644245902,-762.12674054,0.0001,2]
[348587602,1736644245913,-562.39668,0.0001,2]
[348587603,1736644245924,-419.81087525,0.0001,2]
[348587604,1736644245941,-779012.13465379,0.0001,2]
[348587605,1736644246320,-645.59901942,9.989e-05,2]
[348587606,1736644246332,-161.96098058,9.989e-05,2]
[348587607,1736644246342,-8378.03901942,0.0001,2]
[348587608,1736644246354,-8413.025585,0.0001,2]
[348587609,1736644246365,-36674.56850453,0.0001,2]
[348587610,1736644246377,-7434.91566274,0.0001,2]
[348587611,1736644246388,-2122.73576243,0.0001,2]
[348587612,1736644246399,-481.96507016,0.0001,2]
[348587613,1736644246418,-1264.76750391,0.0001,2]
[348587614,1736644246444,-1918.88336097,0.0001,2]
[348587615,1736644246456,-2067.95199297,0.0001,2]
[348587616,1736644246468,-8419.5435418,0.0001,2]
[348587617,1736644246479,-401.96291768,0.0001,2]
[348587618,1736644246502,-186.78062208,0.0001,2]
[348587619,1736644246525,-2340.83019725,0.0001,2]
[348587620,1736644246536,-1154.16,0.0001,2]
[348587621,1736644246547,-9958.5,0.0001,2]
[348587622,1736644246560,-40124.81351,0.0001,2]
[348587623,1736644246578,-5938.15424704,0.0001,2]
[348587624,1736644246589,-351.13071458,0.0001,2]
[348587625,1736644356331,518.95,8.219e-05,2]
[348587626,1736644503863,160.0,8.219e-05,30]
[348587661,1736645432248,-421.3557999,8.925e-05,2]
[348587662,1736645432398,-4.27325726,8.925e-05,2]
[348587663,1736645432411,-1000.0,8.925e-05,2]
[348587664,1736645432421,-192.45,8.925e-05,2]
[348587665,1736645432430,-660.66,8.943e-05,2]
[348587666,1736645432440,-250.0,8.95e-05,2]
[348587667,1736645432449,-300.0,8.975e-05,2]
[348587668,1736645432458,-19494.25,8.976e-05,2]
[348587669,1736645432468,-250.0,9.016e-05,2]